Cogmind - Beta 14 X1 @@@ ROGUE MODE // 2024.07.19 @ 13:38:57

Player: Olafz

Result: Self-destructed

 Performance 
-------------
Evolutions (1)             500
Regions Visited (2)        400
Robots Destroyed (7)       35
Value Destroyed (187)      187
Prototype IDs (0)          0
Alien Tech Used (0)        0
Bonus (0)                  0
              TOTAL SCORE: 1122

 Bonus
-------
None

 Cogmind 
---------
Core Integrity             380/400
Matter                     40/300
Energy                     125/125
System Corruption          2%
Temperature                Cool (0)
Movement                   Walking (120)
Location                   -9/Materials

 Parts 
-------
>       --- POWER (1) --------
  Light Ion Engine
>       --- PROPULSION (2) ---
        Aluminum Leg
        Aluminum Leg
>       --- UTILITY (4) ------
  Small Storage Unit
        Power Shielding
>       --- WEAPON (2) -------
            (None)
>       --- INVENTORY (8) ----
        Aluminum Leg
        Utility Shielding

 Peak State 
------------
>       --- POWER ------------
        Ion Engine
>       --- PROPULSION -------
        Aluminum Leg
        Aluminum Leg
>       --- UTILITY ----------
  Small Storage Unit
        Power Shielding
>       --- WEAPON -----------
        Assault Rifle
  Light Assault Rifle
>       --- INVENTORY --------
  Light Ion Engine
[Rating: 7]

 Favorites 
-----------
Power                      Ion Engine
  Engine                   Ion Engine
Propulsion                 Aluminum Leg
  Leg                      Aluminum Leg
Utility                    Small Storage Unit
  Storage                  Small Storage Unit
  Protection               Power Shielding
Weapon                     Light Assault Rifle
  Ballistic Gun            Light Assault Rifle

 Build                          | -11 -10 -9  
-------                    Run  | Yrd Mat Mat 
Slots Evolved              2    | .   .   2   
  Power                    .    | .   .   .   
  Propulsion               .    | .   .   .   
  Utility                  2    | .   .   2   
  Weapon                   .    | .   .   .   
Parts Attached             10   | 6   4   .   
  Power                    2    | 1   1   .   
    Engine                 2    | 1   1   .   
    Core                   .    | .   .   .   
    Reactor                .    | .   .   .   
  Propulsion               4    | 2   2   .   
    Treads                 .    | .   .   .   
    Leg                    4    | 2   2   .   
    Wheel                  .    | .   .   .   
    Hover                  .    | .   .   .   
    Flight                 .    | .   .   .   
  Utility                  2    | 1   1   .   
    Device                 .    | .   .   .   
    Storage                1    | 1   .   .   
    Processor              .    | .   .   .   
    Hackware               .    | .   .   .   
    Protection             1    | .   1   .   
    Artifact               .    | .   .   .   
  Weapon                   2    | 2   .   .   
    Energy Gun             .    | .   .   .   
    Energy Cannon          .    | .   .   .   
    Ballistic Gun          2    | 2   .   .   
    Ballistic Cannon       .    | .   .   .   
    Launcher               .    | .   .   .   
    Special Weapon         .    | .   .   .   
    Impact Weapon          .    | .   .   .   
    Slashing Weapon        .    | .   .   .   
    Piercing Weapon        .    | .   .   .   
    Special Melee Weapon   .    | .   .   .   
  Unidentified Prototypes  .    | .   .   .   
Parts Lost                 5    | .   5   .   
  Power                    1    | .   1   .   
  Propulsion               2    | .   2   .   
  Utility                  .    | .   .   .   
  Weapon                   2    | .   2   .   
  Highest Loss Streak      5    | .   5   .   
  To Critical Strikes      .    | .   .   .   
Average Slot Usage (%)     88   | .   91  55  
  Engine                   13   | .   14  11  
  Leg                      26   | .   27  22  
  Storage                  13   | .   14  11  
  Protection               12   | .   12  11  
  Ballistic Gun            20   | .   22  .   
Naked Turns                .    | .   .   .   
Heaviest Build             14   | 13  14  9   
  Greatest Support         20   | 20  20  20  
  Greatest Overweight (x)  3    | .   3   .   
  Average Overweight (x)   .    | .   .   .   
Largest Inventory Capacity 8    | 8   8   8   
  Average Capacity         7    | 6   8   8   
  Most Carried             4    | 1   4   2   
  Average Carried          1    | .   1   2   
  Final Capacity           8    | 8   8   8   
  Final Carried            2    | 1   2   2   

 Class Distribution 
--------------------
 100% | Mutant

 Dominant Class 
----------------
 Mutant | -10/Materials
 Mutant | -9/Materials

 Resources                      | -11 -10 -9  
-----------                Run  | Yrd Mat Mat 
Matter Collected           124  | 54  70  .   
  Remotely                 .    | .   .   .   
Salvage Created            228  | .   228 .   
  Parts                    14   | .   14  .   
Haulers Intercepted        .    | .   .   .   
Recyclers Shooed           .    | .   .   .   
Parts Field Recycled       .    | .   .   .   
  Retrieved Matter         .    | .   .   .   
Parts Self-Destructed      .    | .   .   .   
  Prevented                .    | .   .   .   

 Kills                          | -11 -10 -9  
-------                    Run  | Yrd Mat Mat 
Combat Hostiles Destroyed  5    | .   5   .   
  Guns                     5    | .   5   .   
Classes Destroyed          3    | .   3   .   
  Worker                   1    | .   1   .   
  Operator                 1    | .   1   .   
  Grunt                    5    | .   5   .   
Best Kill Streak           2    | .   2   .   
  Combat Bots Only         2    | .   2   .   
Max Kills in Single Turn   1    | .   1   .   
  Gunslinging              .    | .   .   .   
  Exploded                 .    | .   .   .   
  Melee                    .    | .   .   .   
Uniques/NPCs Destroyed     .    | .   .   .   

 Combat                         | -11 -10 -9  
--------                   Run  | Yrd Mat Mat 
Hostile Shots Fired        89   | .   75  14  
  Missed                   27   | .   22  5   
Damage Taken               794  | .   713 81  
  Core                     136  | .   116 20  
  Absorbed by Shields      .    | .   .   .   
  Redirected to Shielding  35   | .   31  4   
Core Remaining (%)         76   | 100 53  .   
Volleys Fired              34   | .   34  .   
  Largest                  2    | .   2   .   
  Hottest                  40   | .   40  .   
Shots Fired                65   | .   65  .   
  Gun                      65   | .   65  .   
  Cannon                   .    | .   .   .   
  Launcher                 .    | .   .   .   
  Special                  .    | .   .   .   
  Kinetic                  65   | .   65  .   
  Thermal                  .    | .   .   .   
  Explosive                .    | .   .   .   
  Electromagnetic          .    | .   .   .   
  Robot Hit Streak         7    | .   7   .   
  Robot Miss Streak        3    | .   3   .   
  Penetration Max          .    | .   .   .   
  Secondary Targets        2    | .   2   .   
    Max Gunslinging Chain  1    | .   1   .   
Shots Hit Robots           40   | .   40  .   
  Core Hits                16   | .   16  .   
  Critical Kills           .    | .   .   .   
  Critical Parts Destroyed .    | .   .   .   
  Critical Strikes         .    | .   .   .   
Melee Attacks              .    | .   .   .   
  Impact                   .    | .   .   .   
  Slashing                 .    | .   .   .   
  Piercing                 .    | .   .   .   
  Sneak Attacks            .    | .   .   .   
    Combat Hostiles        .    | .   .   .   
  Follow-up Attacks        .    | .   .   .   
Damage Inflicted           410  | .   405 5   
  Guns                     403  | .   403 .   
  Cannons                  .    | .   .   .   
  Explosions               .    | .   .   .   
  Melee                    .    | .   .   .   
  Ramming                  7    | .   2   5   
  Kinetic                  403  | .   403 .   
  Thermal                  .    | .   .   .   
  Explosive                .    | .   .   .   
  Electromagnetic          .    | .   .   .   
  Impact                   .    | .   .   .   
  Slashing                 .    | .   .   .   
  Piercing                 .    | .   .   .   
Highest Corruption         2    | .   .   2   
  Average Corruption       2    | .   .   2   
  Corruption Purged        .    | .   .   .   
  Corruption Blocked       .    | .   .   .   
Overload Shots             .    | .   .   .   
Overflow Damage            .    | .   .   .   
  Projectiles              .    | .   .   .   
  Explosions               .    | .   .   .   
  Melee                    .    | .   .   .   
Knockbacks                 .    | .   .   .   
  Impact                   .    | .   .   .   
  Kinetic                  .    | .   .   .   
  Secondary                .    | .   .   .   
Self-Inflicted Damage      1    | .   1   .   
  Shots                    .    | .   .   .   
  Rammed                   1    | .   1   .   
Targets Rammed             5    | .   1   4   
  Kicked                   4    | .   .   4   
  Crushed                  .    | .   .   .   
Highest Temperature        50   | .   50  .   
  Average Temperature      14   | .   14  .   
  Received Heat Transfer   423  | .   423 .   
Siege Activations          .    | .   .   .   
Robots Corrupted           .    | .   .   .   
  Combat Hostiles          .    | .   .   .   
  Parts Fried              .    | .   .   .   
  Impact Corruptions       .    | .   .   .   
Robots Melted              .    | .   .   .   
  Combat Hostiles          .    | .   .   .   
  Parts Melted             .    | .   .   .   
  Heat Transferred         .    | .   .   .   
Parts Sabotaged            .    | .   .   .   
Parts Stolen               .    | .   .   .   
Parts Stripped             .    | .   .   .   
Power Chain Reactions      .    | .   .   .   

 Alert                          | -11 -10 -9  
-------                    Run  | Yrd Mat Mat 
Peak Influence             142  | .   142 50  
  Initial                  5    | .   .   5   
  Average                  47   | .   55  17  
Maximum Alert Level        .    | .   .   .   
  Low Security (%)         100  | 100 100 100 
  Level 1                  .    | .   .   .   
  Level 2                  .    | .   .   .   
  Level 3                  .    | .   .   .   
  Level 4                  .    | .   .   .   
  Level 5                  .    | .   .   .   
  High Security            .    | .   .   .   
  Max Security             .    | .   .   .   
Squads Dispatched          4    | .   3   1   
  Investigation            .    | .   .   .   
  Extermination            .    | .   .   .   
  Reinforcement            4    | .   3   1   
  Assault                  .    | .   .   .   
  Garrison                 .    | .   .   .   
  Intercept                .    | .   .   .   
Searches Triggered         .    | .   .   .   
Construction Impeded       .    | .   .   .   
Haulers Reinforced         .    | .   .   .   
Active Scanning Responses  .    | .   .   .   
Cargo Convoy Interrupts    .    | .   .   .   

 Stealth                        | -11 -10 -9  
---------                  Run  | Yrd Mat Mat 
Distress Signals           .    | .   .   .   
Communications Jammed      .    | .   .   .   
  Distress Signals         .    | .   .   .   
Times Spotted              19   | .   14  5   
  Peak Tracking Total      8    | .   6   8   
  Tactical Retreats        2    | .   1   1   

 Traps                          | -11 -10 -9  
-------                    Run  | Yrd Mat Mat 
Traps Triggered            1    | .   .   1   
  Indirectly               .    | .   .   .   
Trap Hack Attempts         .    | .   .   .   
  Triggered                .    | .   .   .   
  Disarmed                 .    | .   .   .   
  Reprogrammed             .    | .   .   .   
  Reused                   .    | .   .   .   
Traps Extracted            .    | .   .   .   
  Installed                .    | .   .   .   
  Triggered                .    | .   .   .   

 Machines                       | -11 -10 -9  
----------                 Run  | Yrd Mat Mat 
Machines Disabled          .    | .   .   .   
  Max in Single Turn       .    | .   .   .   
Machines Repaired          .    | .   .   .   
Machines Dismantled        .    | .   .   .   
Machines Sabotaged         .    | .   .   .   
Overloaded Fab Kills       .    | .   .   .   

 Hacking                        | -11 -10 -9  
---------                  Run  | Yrd Mat Mat 
Machines Accessed          2    | .   2   .   
  Terminals                2    | .   2   .   
  Fabricators              .    | .   .   .   
  Repair Stations          .    | .   .   .   
  Recycling Units          .    | .   .   .   
  Scanalyzers              .    | .   .   .   
  Garrison Access          .    | .   .   .   
Total Hacks                4    | .   4   .   
  Successful               1    | .   1   .   
  Failed                   3    | .   3   .   
    Catastrophic           1    | .   1   .   
  Database Lockouts        .    | .   .   .   
  Manual                   4    | .   4   .   
  Terminals                4    | .   4   .   
  Fabricators              .    | .   .   .   
  Repair Stations          .    | .   .   .   
  Recycling Units          .    | .   .   .   
  Scanalyzers              .    | .   .   .   
  Garrison Access          .    | .   .   .   
Terminal Hacks             1    | .   1   .   
  Branch Access Points     1    | .   1   .   
Fabricator Hacks           .    | .   .   .   
Repair Station Hacks       .    | .   .   .   
Recycling Unit Hacks       .    | .   .   .   
Scanalyzer                 .    | .   .   .   
Garrison Access Hacks      .    | .   .   .   
Unauthorized Hacks         .    | .   .   .   
  Terminals                .    | .   .   .   
  Fabricators              .    | .   .   .   
  Repair Stations          .    | .   .   .   
  Recycling Units          .    | .   .   .   
  Scanalyzers              .    | .   .   .   
  Garrison Access          .    | .   .   .   
Data Cores Recovered       .    | .   .   .   
  Used                     .    | .   .   .   
Hacking Detections         2    | .   2   .   
  Full Trace Events        1    | .   1   .   
  Feedback Events          .    | .   .   .   
  Feedback Blocked         .    | .   .   .   
Robot Schematics Acquired  .    | .   .   .   
  Robots Built             .    | .   .   .   
    Authchips              .    | .   .   .   
    Time                   .    | .   .   .   
  Total Robot Build Rating .    | .   .   .   
Part Schematics Acquired   .    | .   .   .   
  Parts Built              .    | .   .   .   
    Authchips              .    | .   .   .   
    Time                   .    | .   .   .   
  Total Part Build Rating  .    | .   .   .   
Parts Repaired             .    | .   .   .   
  Time                     .    | .   .   .   
Parts Recycled             .    | .   .   .   
  Recycled Matter          .    | .   .   .   
  Retrieved Matter         .    | .   .   .   
  Retrieved Components     .    | .   .   .   
Parts Scanalyzed           .    | .   .   .   
  Part Schematics Acquired .    | .   .   .   
  Parts Damaged            .    | .   .   .   

 Bothacking                     | -11 -10 -9  
------------               Run  | Yrd Mat Mat 
Used RIF Installer         .    | .   .   .   
Robots Hacked              .    | .   .   .   
  Non-combat               .    | .   .   .   
  Combat                   .    | .   .   .   
Robot Hacks Applied        .    | .   .   .   
Relay Couplers Released    .    | .   .   .   
Fabnet Peak Effective %    .    | .   .   .   
Robots Rewired             .    | .   .   .   
Allies Hacked              .    | .   .   .   
Hacks Repelled             .    | .   .   .   

 Allies                         | -11 -10 -9  
--------                   Run  | Yrd Mat Mat 
Total Allies               .    | .   .   .   
  Largest Group            .    | .   .   .   
  Highest-Rated Group      .    | .   .   .   
  Highest-Rated Ally       .    | .   .   .   
Total Orders               .    | .   .   .   
Ally Attacks               .    | .   .   .   
  Total Damage             .    | .   .   .   
  Kills                    .    | .   .   .   
Allies Corrupted           .    | .   .   .   
Allies Melted              .    | .   .   .   

 Intel                          | -11 -10 -9  
-------                    Run  | Yrd Mat Mat 
Robot Analysis Total       .    | .   .   .   
Derelict Logs Recovered    .    | .   .   .   
Drone Launches             .    | .   .   .   
  Drone Recoveries         .    | .   .   .   

 Exploration                    | -11 -10 -9  
-------------              Run  | Yrd Mat Mat 
Turns Passed               551  | 51  450 50  
Spaces Moved               357  | 36  284 37  
  Core                     4    | 3   1   .   
  Treads                   .    | .   .   .   
  Legs                     353  | 33  283 37  
  Wheels                   .    | .   .   .   
  Hover                    .    | .   .   .   
  Flight                   .    | .   .   .   
  Fastest Speed            50   | 50  120 120 
  Average Speed            119  | 114 120 120 
  Slowest Speed            200  | 120 200 120 
  Overloaded Moves         .    | .   .   .   
  Propulsion Burnouts      .    | .   .   .   
  Robots Hopped            .    | .   .   .   
  Cave-ins Triggered       .    | .   .   .   
Exploration Rate (%)       20   | 3   50  8   
  Regions Visited          2
    Branch Regions         .
  Pre-discovered Areas     .    | .   .   .   
  Known Exits Taken        .    | .   .   .   
  Unknown Exits Taken      2    | 1   1   .   
Scrap Searched             .    | .   .   .   
Spaces Dug                 .    | .   .   .   
Terrain Destroyed          .    | .   .   .   
  Melee                    .    | .   .   .   
  Projectile               .    | .   .   .   
  AOE                      .    | .   .   .   
Terrain Rammed             .    | .   .   .   
  Walls Destroyed          .    | .   .   .   
  Machines Disabled        .    | .   .   .   

 Actions                        | -11 -10 -9  
---------                  Run  | Yrd Mat Mat 
Total                      416  | 43  332 41  
  Wait                     8    | 1   7   .   
  Move                     355  | 35  283 37  
  Hop                      .    | .   .   .   
  Pick Up                  4    | 1   3   .   
  Fast Attach              8    | 6   2   .   
  Attach                   2    | .   2   .   
  Detach                   .    | .   .   .   
  Swap                     .    | .   .   .   
  Drop                     .    | .   .   .   
  Fire                     34   | .   34  .   
  Melee                    .    | .   .   .   
  Ram                      1    | .   1   .   
  Kick                     4    | .   .   4   
  Crush                    .    | .   .   .   
  Escape Stasis            .    | .   .   .   
  Rewire                   .    | .   .   .   
  Trap                     .    | .   .   .   
  Miscellaneous            .    | .   .   .   

 Route 
-------
-11/Scrapyard
-10/Materials (discovered 2 exits: [*Mat] / Min)
-9/Materials

 History 
---------
 Turn | Location      | Event
   12 | -11/Scrapyard | Discovered new exit (range 16)
   52 | -11/Scrapyard | Entered Materials
   98 | -10/Materials | Identified exit to Mines
  305 | -10/Materials | Build established: Mutant
  453 | -10/Materials | Lost 5 parts (1p2n2w)
  497 | -10/Materials | Discovered new exit (range 4)
  502 | -10/Materials | Entered another Materials area
  502 | -9/Materials  | Evolved 2 slots: Utility x2
  552 | -9/Materials  | Self-destructed

 Last Messages 
---------------
Lgt. Assault Rifle destroyed.
Aluminum Leg destroyed.
Slammed into G-47 Trooper.
Ion Engine destroyed.
Acquired Aluminum Leg.
EXIT=FOUND
O-16 Technician: "IFF HANDSHAKE FAILED. SECURING TERMINAL."
ALERT: Hostiles spotted, dispatching reinforcements to Terminal M002.
PARAMETERS=UTILITY+2
LOCATION=UNKNOWN
GOAL=ESCAPE
K-01 Serf collects debris. <x3>
ALERT: Hostiles spotted, dispatching reinforcements to Terminal M006.
K-01 Serf collects debris. <x2>
Triggered Shock Trap.
The floor emits a surge of raw power.
System corrupted (+2).
Kicked S-10 Pest. <x2>
K-01 Serf collects debris.
Kicked S-10 Pest out of the way. <x2>

 Map 
-----
+----------------------------------------------------+
| ?????????????????????????????????????????????????? |
| ??????????????????????????????????#####??????????? |
| ??????????????????????????????????#   #??????????? |
| ??????????????????????????????????#   #??????????? |
| ??????????????????????????????????#   #??????????? |
| ??????????????????????????????????#   #??????????? |
| ????????????????????????###########   #??????????? |
| ????????????????????????#         #   #??????????? |
| ????????????????????????#         #   #??????????? |
| ????????????????????????#         #   #??????????? |
| ????????????????????????#         #   #??????????? |
| ????????????????????????#         #   #??????????? |
| ????????????????????????#         +   #??????????? |
| ????????????????????????#         #   #??????????? |
| ??????????????  ????????# !       #   #??????????? |
| ?????????????    ???????###########   ##?????????? |
| ????????????      ???????????????#     ########### |
| ?????????????#     ??????????????#                 |
| ?????????????#      ?????????????#                 |
| ?????????????#      ##############                 |
| ?????????????#                         ########### |
| ????????????##             #############?????????? |
| ????????????+              #########?????????????? |
| ?????????????#             #   ^   #?????????????? |
| ?????????????#             # """   #?????????????? |
| ?????????????#    k      @ + """   #?????????????? |
| ?????????????#    ########s# """   #?????????????? |
| ?????????????#   ????????# #       #?????????????? |
| ????????????  ???????????# #########?????????????? |
| ?????????????????????????# #?????????????????????? |
| ?????????????????????????# #?????????????????????? |
| ?????????????????????????# #?????????????????????? |
| ?????????????????????????# #?????????????????????? |
| ?????????????????????????# #?????????????????????? |
| ??????????????????????????  ?????????????????????? |
| ??????????????????????????##?????????????????????? |
| ?????????????????????????????????????????????????? |
| ?????????????????????????????????????????????????? |
| ?????????????????????????????????????????????????? |
| ?????????????????????????????????????????????????? |
| ?????????????????????????????????????????????????? |
| ?????????????????????????????????????????????????? |
| ?????????????????????????????????????????????????? |
| ?????????????????????????????????????????????????? |
| ?????????????????????????????????????????????????? |
| ?????????????????????????????????????????????????? |
| ?????????????????????????????????????????????????? |
| ?????????????????????????????????????????????????? |
| ?????????????????????????????????????????????????? |
| ?????????????????????????????????????????????????? |
+----------------------------------------------------+

 Best States
-------------
Heat Dissipation           28
Energy Generation          10
Energy Capacity            250
Matter Stores              106
Matter Capacity            300
Sight Range                16
Terrain Scan Density       10
Power Shielding            33
Evasion (%)                55

 Item Schematics 
-----------------
None

 Robot Schematics 
------------------
None

 Fabricated
------------
Nothing

 Alien Tech Used 
-----------------
None

 Achievements 
--------------
None

 Challenges 
------------
None

 Game 
------
Seed              TransmissionMobileComputer
  Manual?         0
Play Time         00:04:31
  Cumulative      149.5 hours
  Start           2024.07.19 @ 13:01:59
  End             2024.07.19 @ 13:38:57
Sessions          1
Manual Loads      0
Difficulty        Rogue
Special Mode      None
Game No.          248
  Rogue           246
  Adventurer      2
  Explorer        0
Win Type          -
  Total           4
  Types           3/0/0/1/0/0/0/0/0
Lore%             40
Gallery%          61
Achievement%      51
Wizard Run        0

 Options 
---------
Layout            0
ASCII             0
Keyboard          1
Movement          Numpad
Keybinds          1
Fullscreen        2
Font              18/SmallcapsGlow
Map View          76x50
Zoom Use          0%
Tactical HUD      1
Map Filters       NONE
Filters           NONE
Steam             1


RUN: a1834635-6ced-4efe-92ef-5eae52d251bd